fUSD/lending_fUSD_20250720
["ID","MTS","AMOUNT","RATE_DAILY","PERIOD"]
[373373636,1752975041009,-200.0,0.00018895,2]
[373373638,1752975041019,-816.01025203,0.00018898,2]
[373373640,1752975041029,-163.50027063,0.000189,2]
[373373642,1752975041039,-869.97253,0.0001892,2]
[373373644,1752975041048,-200.0,0.00018943,2]
[373373646,1752975041058,-816.01025203,0.00018946,2]
[373373648,1752975041067,-200.0,0.00018952,2]
[373373650,1752975041077,-215.84,0.00018982,2]
[373373652,1752975041086,-182.52959912,0.0001899,2]
[373373654,1752975041096,-13064.24045621,0.00018992,2]
[373373681,1752975042704,-660.67094382,0.00018992,2]
[373373682,1752975042717,-12255.22002469,0.00018992,2]
[373373683,1752975042944,-20921.89513334,0.00018992,2]
[373373686,1752975042955,-2500.0,0.00018992,2]
[373373695,1752975045699,-285.72,0.00017742,2]
[373373696,1752975045708,-136.97429483,0.00018992,2]
[373373697,1752975045761,-1215.3130322,0.00018992,2]
[373373698,1752975045773,-759.07490643,0.00018992,2]
[373373699,1752975045784,-2441.682765,0.00018992,2]
[373373708,1752975072355,250.0,0.00015,2]
[373373709,1752975075791,309.35,0.00013699,2]
[373373718,1752975306748,1000.0,0.0002501,120]
[373373721,1752975580831,505.66,0.0002501,120]
[373373728,1752975989386,524.0,0.00014564,2]
[373373729,1752975991715,150.0,0.00015073,20]
[373373732,1752976119178,293.88,0.00013699,2]
[373373738,1752976227870,158.27154326,0.00015,20]
[373373755,1752976231658,-289.99060142,0.000165,2]
[373373756,1752976231754,-403.00939858,0.000165,2]
[373373757,1752976231764,-500.0,0.0001663,2]
[373373758,1752976231773,-928.09345273,0.00017,2]
[373373759,1752976231794,-524.53724441,0.00017,2]
[373373760,1752976231805,-2579.40996739,0.00017,2]
[373373761,1752976231816,-967.95933547,0.00017,2]
[373373762,1752976231825,-529.350083,0.00017035,2]
[373373763,1752976231834,-1200.0,0.00017493,2]
[373373764,1752976231844,-13121.23,0.00017494,2]
[373373765,1752976231853,-411.0,0.000175,2]
[373373766,1752976231862,-636.97738153,0.00017524,2]
[373373767,1752976231873,-114.47261847,0.00017524,2]
[373373768,1752976231883,-433.30046321,0.00017592,2]
[373373769,1752976231899,-434.73953679,0.00017592,2]
[373373770,1752976231908,-176.41993731,0.00017616,3]
[373373771,1752976231917,-896.07,0.0001762,2]
[373373772,1752976231927,-1000.0,0.00017633,2]
[373373773,1752976231936,-156.33,0.00017673,2]
[373373774,1752976231945,-197.9,0.00017675,2]
[373373775,1752976231954,-186.93,0.00017722,2]
[373373776,1752976231963,-166.96,0.00017752,2]
[373373777,1752976231973,-250.0,0.00017801,2]
[373373778,1752976231982,-524.0,0.0001781,6]
[373373779,1752976231991,-600.0,0.00017948,2]
[373373780,1752976232001,-600.0,0.00017948,2]
[373373781,1752976232011,-230.63,0.00017948,2]
[373373782,1752976232020,-190.0,0.00018125,7]
[373373783,1752976232030,-150.0,0.0001815,2]
[373373784,1752976232039,-213.61,0.00018329,2]
[373373785,1752976232048,-520.28213057,0.00018345,7]
[373373786,1752976232058,-520.28213057,0.00018345,7]
[373373787,1752976232067,-520.28213057,0.00018345,7]
[373373788,1752976232076,-6763.66769746,0.00018345,7]
[373373789,1752976232086,-207.4,0.00018488,2]
[373373791,1752976232095,-600.0,0.00018488,2]
[373373793,1752976232105,-6250.56791376,0.00018488,2]
[373373795,1752976232114,-354.27172165,0.00018488,2]
[373373797,1752976232123,-448.57,0.00018505,2]
[373373799,1752976232132,-343.93,0.00018505,2]
[373373801,1752976232142,-2347.31,0.00018505,2]
[373373802,1752976232151,-233.868821,0.0001862,2]
[373373804,1752976232161,-166.96,0.00018639,2]
[373373806,1752976232171,-168.0,0.00018662,2]
[373373808,1752976232180,-500.0,0.0001874,2]
[373373809,1752976232189,-402.0,0.0001878,2]
[373373811,1752976232198,-987.16,0.000188,2]
[373373814,1752976232208,-587.70519,0.000188,2]
[373373817,1752976232217,-684.94354191,0.00018892,2]
[373373820,1752976232226,-303.3817,0.000189,2]
[373373823,1752976232235,-200.0,0.00018902,2]
[373373825,1752976232245,-357.46,0.00018959,2]
[373373827,1752976232254,-172.11,0.00018959,2]
[373373829,1752976232264,-292.99,0.00018959,2]
[373373831,1752976232273,-1174.01,0.00018959,2]
[373373833,1752976232283,-500.0,0.00018973,2]
[373373835,1752976232293,-200.0,0.00018983,2]
[373373837,1752976232302,-1386.06106778,0.00018987,2]
[373373839,1752976232311,-55079.2630289,0.0001899,2]
[373373861,1752976232515,-2397.03178065,0.0001899,2]
[373373863,1752976232527,-800.71,0.0001899,2]
[373373880,1752976232676,-72364.87608775,0.0001899,2]
[373373882,1752976232685,-200.0,0.00018994,2]
[373373884,1752976232694,-684.94354185,0.00018998,2]
[373373886,1752976232704,-223.82,0.00019,2]
[373373887,1752976232713,-151.0,0.00019,2]
[373373889,1752976232722,-241.3424546,0.00019,2]
[373373891,1752976232731,-744.50752038,0.00019003,2]
[373373893,1752976232741,-213.61,0.00019016,2]
[373373895,1752976232750,-600.0,0.00019036,2]
[373373897,1752976232760,-642.88315874,0.00019073,2]
[373373899,1752976232769,-151.5636,0.00019078,2]
[373373901,1752976232778,-743.94457466,0.00019078,2]
[373373903,1752976232787,-165.88294431,0.00019078,2]
[373373905,1752976232796,-500.0,0.00019078,2]
[373373907,1752976232805,-500.0,0.00019078,2]
[373373909,1752976232815,-200.2122172,0.00019078,2]
[373373911,1752976232824,-151.87672839,0.00019078,2]
[373373913,1752976232833,-288.50666902,0.00019078,2]
[373373915,1752976232842,-4518.0,0.00019078,2]
[373373917,1752976232851,-664.0,0.00019078,2]
[373373919,1752976232860,-500.0,0.00019078,2]
[373373921,1752976232869,-150.0,0.00019078,2]
[373373923,1752976232878,-500.0,0.00019078,2]
[373373924,1752976232888,-500.0,0.00019078,2]
[373373927,1752976232899,-500.0,0.00019078,2]
[373373929,1752976232908,-167.09121166,0.00019078,2]
[373373930,1752976232917,-150.0,0.00019078,2]
[373373932,1752976232926,-500.0,0.00019078,2]
[373373934,1752976232935,-1228.0,0.00019078,2]
[373373936,1752976232945,-500.0,0.00019078,2]
[373373938,1752976232954,-361.4329884,0.00019078,2]
[373374281,1752976238150,-138.5670116,0.00019078,2]
[373374283,1752976238160,-1193.0,0.00019078,2]
[373374285,1752976238169,-203.84272038,0.00019078,2]
[373374287,1752976238178,-150.0,0.00019078,2]
[373374289,1752976238188,-150.0,0.00019078,2]
[373374291,1752976238197,-166.77644888,0.00019078,2]
[373374293,1752976238207,-1264.8345,0.00019078,2]
[373374295,1752976238216,-168.0,0.00019084,2]
[373374297,1752976238226,-265.85015238,0.000191,2]
[373374300,1752976238276,-2084.18389902,0.000191,2]
[373374301,1752976238286,-684.94354185,0.00019104,2]
[373374302,1752976238295,-274.29,0.00019168,2]
[373374303,1752976238305,-274.29,0.00019168,2]
[373374304,1752976238315,-743.94457458,0.00019169,2]
[373374305,1752976238324,-500.0,0.00019173,2]
[373374306,1752976238333,-150.0,0.00019173,2]
[373374307,1752976238342,-2218.0,0.00019173,2]
[373374308,1752976238351,-252.90138392,0.00019173,2]
[373374309,1752976238360,-500.0,0.00019173,2]
[373374311,1752976238370,-150.0,0.00019173,2]
[373374313,1752976238379,-150.0,0.00019173,2]
[373374315,1752976238388,-150.0,0.00019173,2]
[373374317,1752976238397,-1221.75069009,0.00019177,2]
[373374319,1752976238406,-1000.0,0.00019177,2]
[373374321,1752976238415,-321.75123518,0.00019177,2]
[373374323,1752976238424,-355.97003169,0.00019177,2]
[373374325,1752976238433,-444927.24025784,0.00019178,2]
[373374327,1752976238442,-10628.60207724,0.00019178,2]
[373374329,1752976238451,-151.0,0.00019178,2]
[373374331,1752976238460,-153.37225,0.00019178,2]
[373374333,1752976238469,-151.0,0.00019178,2]
[373374335,1752976238479,-151.0,0.00019178,2]
[373374337,1752976238488,-151.0,0.00019178,2]
[373374339,1752976238497,-151.0,0.00019178,2]
[373374341,1752976238507,-151.0,0.00019178,2]
[373374343,1752976238516,-151.0,0.00019178,2]
[373374345,1752976238526,-151.0,0.00019178,2]
[373374347,1752976238535,-151.0,0.00019178,2]
[373374349,1752976238545,-151.0,0.00019178,2]
[373374351,1752976238556,-151.0,0.00019178,2]
[373374353,1752976238565,-151.0,0.00019178,2]
[373374355,1752976238575,-151.0,0.00019178,2]
[373374357,1752976238584,-151.0,0.00019178,2]
[373374359,1752976238593,-151.0,0.00019178,2]
[373374361,1752976238602,-151.0,0.00019178,2]
[373374363,1752976238611,-151.0,0.00019178,2]
[373374365,1752976238620,-152.097919,0.00019178,2]
[373374367,1752976238630,-199.09789,0.00019178,2]
[373374369,1752976238639,-199.09789,0.00019178,2]
[373374371,1752976238648,-199.09789,0.00019178,2]
[373374373,1752976238658,-199.09789,0.00019178,2]
[373374375,1752976238667,-199.09789,0.00019178,2]
[373374377,1752976238677,-199.09789,0.00019178,2]
[373374379,1752976238687,-199.09789,0.00019178,2]
[373374381,1752976238696,-199.09789,0.00019178,2]
[373374383,1752976238705,-199.09789,0.00019178,2]
[373374385,1752976238714,-199.09789,0.00019178,2]
[373374387,1752976238723,-199.09789,0.00019178,2]
[373374389,1752976238733,-199.09789,0.00019178,2]
[373374391,1752976238742,-151.0,0.00019178,2]
[373374393,1752976238751,-151.0,0.00019178,2]
[373374395,1752976238760,-151.0,0.00019178,2]
[373374397,1752976238770,-151.0,0.00019178,2]
[373374399,1752976238779,-151.0,0.00019178,2]
[373374401,1752976238788,-151.0,0.00019178,2]
[373374403,1752976238797,-151.0,0.00019178,2]
[373374405,1752976238806,-151.0,0.00019178,2]
[373374407,1752976238815,-151.0,0.00019178,2]
[373374409,1752976238825,-151.0,0.00019178,2]
[373374411,1752976238836,-151.0,0.00019178,2]
[373374413,1752976238845,-151.0,0.00019178,2]
[373374415,1752976238855,-151.0,0.00019178,2]
[373374417,1752976238865,-151.0,0.00019178,2]
[373374419,1752976238875,-151.0,0.00019178,2]
[373374422,1752976238885,-151.0,0.00019178,2]
[373374424,1752976238899,-151.0,0.00019178,2]
[373374425,1752976238908,-151.0,0.00019178,2]
[373374428,1752976238918,-151.0,0.00019178,2]
[373374430,1752976238927,-151.0,0.00019178,2]
[373374432,1752976238936,-151.0,0.00019178,2]
[373374434,1752976238946,-151.0,0.00019178,2]
[373374436,1752976238955,-151.0,0.00019178,2]
[373374438,1752976238964,-151.0,0.00019178,2]
[373374440,1752976238973,-151.0,0.00019178,2]
[373374442,1752976238982,-151.0,0.00019178,2]
[373374444,1752976238991,-192.523062,0.00019178,2]
[373374446,1752976239002,-151.0,0.00019178,2]
[373374447,1752976239011,-151.0,0.00019178,2]
[373374450,1752976239021,-168.479729,0.00019178,2]
[373374452,1752976239031,-168.479729,0.00019178,2]
[373374454,1752976239040,-168.479729,0.00019178,2]
[373374456,1752976239050,-153.458759,0.00019178,2]
[373374458,1752976239059,-151.0,0.00019178,2]
[373374460,1752976239068,-151.0,0.00019178,2]
[373374461,1752976239078,-151.0,0.00019178,2]
[373374464,1752976239088,-151.0,0.00019178,2]
[373374466,1752976239098,-151.0,0.00019178,2]
[373374468,1752976239107,-151.0,0.00019178,2]
[373374470,1752976239116,-151.0,0.00019178,2]
[373374471,1752976239127,-151.0,0.00019178,2]
[373374473,1752976239136,-151.0,0.00019178,2]
[373374475,1752976239145,-151.0,0.00019178,2]
[373374477,1752976239155,-151.0,0.00019178,2]
[373374480,1752976239164,-151.0,0.00019178,2]
[373374482,1752976239174,-151.0,0.00019178,2]
[373374484,1752976239183,-285.203905,0.00019178,2]
[373374486,1752976239192,-151.0,0.00019178,2]
[373374488,1752976239202,-151.0,0.00019178,2]
[373374490,1752976239211,-160.240419,0.00019178,2]
[373374492,1752976239221,-151.0,0.00019178,2]
[373374494,1752976239229,-163.637669,0.00019178,2]
[373374496,1752976239238,-151.0,0.00019178,2]
[373374498,1752976239248,-151.0,0.00019178,2]
[373374500,1752976239259,-151.0,0.00019178,2]
[373374502,1752976239268,-151.0,0.00019178,2]
[373374504,1752976239278,-151.738333,0.00019178,2]
[373374506,1752976239287,-151.0,0.00019178,2]
[373374508,1752976239296,-151.0,0.00019178,2]
[373374510,1752976239306,-151.0,0.00019178,2]
[373374512,1752976239315,-151.0,0.00019178,2]
[373374514,1752976239325,-151.0,0.00019178,2]
[373374516,1752976239334,-151.0,0.00019178,2]
[373374518,1752976239344,-151.0,0.00019178,2]
[373374520,1752976239353,-151.0,0.00019178,2]
[373374522,1752976239362,-151.0,0.00019178,2]
[373374524,1752976239372,-151.0,0.00019178,2]
[373374526,1752976239381,-151.0,0.00019178,2]
[373374528,1752976239391,-206.424367,0.00019178,2]
[373374530,1752976239400,-480.0,0.00019178,2]
[373374532,1752976239409,-151.0,0.00019178,2]
[373374534,1752976239418,-151.0,0.00019178,2]
[373374536,1752976239427,-151.0,0.00019178,2]
[373374538,1752976239436,-151.0,0.00019178,2]
[373374540,1752976239446,-151.0,0.00019178,2]
[373374542,1752976239455,-151.0,0.00019178,2]
[373374544,1752976239464,-151.0,0.00019178,2]
[373374546,1752976239474,-151.0,0.00019178,2]
[373374548,1752976239483,-202.902476,0.00019178,2]
[373374550,1752976239492,-460.0,0.00019178,2]
[373374552,1752976239502,-151.0,0.00019178,2]
[373374554,1752976239511,-151.0,0.00019178,2]
[373374556,1752976239521,-151.0,0.00019178,2]
[373374558,1752976239530,-151.0,0.00019178,2]
[373374561,1752976239539,-151.0,0.00019178,2]
[373374562,1752976239548,-151.0,0.00019178,2]
[373374564,1752976239558,-151.0,0.00019178,2]
[373374566,1752976239567,-151.0,0.00019178,2]
[373374568,1752976239576,-151.0,0.00019178,2]
[373374570,1752976239586,-151.0,0.00019178,2]
[373374572,1752976239595,-151.0,0.00019178,2]
[373374574,1752976239605,-151.0,0.00019178,2]
[373374576,1752976239614,-151.0,0.00019178,2]
[373374578,1752976239623,-151.0,0.00019178,2]
[373374580,1752976239633,-151.0,0.00019178,2]
[373374582,1752976239642,-151.0,0.00019178,2]
[373374584,1752976239652,-192.337337,0.00019178,2]
[373374586,1752976239661,-203.437045,0.00019178,2]
[373374588,1752976239670,-203.437045,0.00019178,2]
[373374590,1752976239679,-203.437045,0.00019178,2]
[373374592,1752976239689,-203.437045,0.00019178,2]
[373374594,1752976239698,-203.437045,0.00019178,2]
[373374596,1752976239708,-203.437045,0.00019178,2]
[373374599,1752976239718,-203.437045,0.00019178,2]
[373374601,1752976239727,-203.437045,0.00019178,2]
[373374602,1752976239736,-203.437045,0.00019178,2]
[373374604,1752976239746,-203.437045,0.00019178,2]
[373374606,1752976239756,-203.437045,0.00019178,2]
[373374608,1752976239766,-203.437045,0.00019178,2]
[373374610,1752976239775,-203.437045,0.00019178,2]
[373374612,1752976239785,-203.437045,0.00019178,2]
[373374614,1752976239794,-480.0,0.00019178,2]
[373374616,1752976239804,-151.0,0.00019178,2]
[373374618,1752976239813,-151.0,0.00019178,2]
[373374620,1752976239823,-158.802989,0.00019178,2]
[373374622,1752976239833,-189.096445,0.00019178,2]
[373374624,1752976239843,-189.096445,0.00019178,2]
[373374626,1752976239852,-189.096445,0.00019178,2]
[373374628,1752976239861,-189.096445,0.00019178,2]
[373374630,1752976239870,-189.096445,0.00019178,2]
[373374632,1752976239880,-189.096445,0.00019178,2]
[373374634,1752976239891,-189.096445,0.00019178,2]
[373374636,1752976239901,-189.096445,0.00019178,2]
[373374638,1752976239911,-189.096445,0.00019178,2]
[373374640,1752976239920,-189.096445,0.00019178,2]
[373374642,1752976239930,-189.096445,0.00019178,2]
[373374644,1752976239939,-189.096445,0.00019178,2]
[373374646,1752976239949,-189.096445,0.00019178,2]
[373374648,1752976239959,-151.0,0.00019178,2]
[373374650,1752976239971,-151.0,0.00019178,2]
[373374652,1752976239981,-189.096445,0.00019178,2]
[373374654,1752976239990,-151.0,0.00019178,2]
[373374656,1752976240000,-151.0,0.00019178,2]
[373374658,1752976240010,-189.096445,0.00019178,2]
[373374660,1752976240020,-151.0,0.00019178,2]
[373374662,1752976240029,-189.096445,0.00019178,2]
[373374664,1752976240038,-152.608072,0.00019178,2]
[373374666,1752976240048,-151.0,0.00019178,2]
[373374668,1752976240057,-151.0,0.00019178,2]
[373374670,1752976240066,-152.824379,0.00019178,2]
[373374672,1752976240076,-151.0,0.00019178,2]
[373374674,1752976240086,-151.0,0.00019178,2]
[373374683,1752976240157,-151.0,0.00019178,2]
[373374685,1752976240166,-151.0,0.00019178,2]
[373374687,1752976240176,-151.0,0.00019178,2]
[373374689,1752976240185,-151.0,0.00019178,2]
[373374691,1752976240194,-151.0,0.00019178,2]
[373374693,1752976240203,-151.0,0.00019178,2]
[373374695,1752976240213,-151.0,0.00019178,2]
[373374697,1752976240222,-151.0,0.00019178,2]
[373374699,1752976240231,-151.0,0.00019178,2]
[373374701,1752976240240,-273.072981,0.00019178,2]
[373374703,1752976240250,-151.0,0.00019178,2]
[373374705,1752976240259,-151.0,0.00019178,2]
[373374707,1752976240269,-152.375721,0.00019178,2]
[373374709,1752976240279,-480.0,0.00019178,2]
[373374711,1752976240288,-488.17961065,0.00019178,2]
[373374713,1752976240297,-480.0,0.00019178,2]
[373374715,1752976240307,-151.0,0.00019178,2]
[373374717,1752976240317,-151.0,0.00019178,2]
[373374719,1752976240326,-151.0,0.00019178,2]
[373374721,1752976240335,-151.0,0.00019178,2]
[373374723,1752976240344,-151.0,0.00019178,2]
[373374725,1752976240353,-151.0,0.00019178,2]
[373374727,1752976240362,-151.0,0.00019178,2]
[373374729,1752976240371,-151.0,0.00019178,2]
[373374731,1752976240380,-151.0,0.00019178,2]
[373374733,1752976240389,-151.0,0.00019178,2]
[373374735,1752976240399,-151.0,0.00019178,2]
[373374737,1752976240408,-151.0,0.00019178,2]
[373374739,1752976240417,-151.0,0.00019178,2]
[373374740,1752976240426,-151.0,0.00019178,2]
[373374742,1752976240436,-151.0,0.00019178,2]
[373374744,1752976240445,-153.230312,0.00019178,2]
[373374746,1752976240454,-541.09557376,0.00019178,2]
[373374748,1752976240463,-462.56210392,0.00019178,2]
[373374750,1752976240473,-563.73749556,0.00019178,2]
[373374752,1752976240482,-462.45905041,0.00019178,2]
[373374754,1752976240491,-151.0,0.00019178,2]
[373374756,1752976240501,-151.0,0.00019178,2]
[373374758,1752976240510,-412.523642,0.00019178,2]
[373374760,1752976240519,-353.87864509,0.00019178,2]
[373374762,1752976240529,-412.523642,0.00019178,2]
[373374764,1752976240538,-412.523642,0.00019178,2]
[373374766,1752976240547,-412.523642,0.00019178,2]
[373374768,1752976240556,-412.523642,0.00019178,2]
[373374770,1752976240565,-487.254084,0.00019178,2]
[373374772,1752976240574,-412.523642,0.00019178,2]
[373374774,1752976240583,-412.523642,0.00019178,2]
[373374776,1752976240593,-412.523642,0.00019178,2]
[373374778,1752976240602,-412.523642,0.00019178,2]
[373374780,1752976240611,-412.523642,0.00019178,2]
[373374782,1752976240620,-412.523642,0.00019178,2]
[373374784,1752976240629,-151.0,0.00019178,2]
[373374786,1752976240638,-412.523642,0.00019178,2]
[373374788,1752976240647,-151.0,0.00019178,2]
[373374790,1752976240656,-412.523642,0.00019178,2]
[373374792,1752976240665,-151.0,0.00019178,2]
[373374794,1752976240674,-412.523642,0.00019178,2]
[373374796,1752976240684,-151.0,0.00019178,2]
[373374798,1752976240693,-412.523642,0.00019178,2]
[373374800,1752976240701,-151.0,0.00019178,2]
[373374802,1752976240710,-412.523642,0.00019178,2]
[373374804,1752976240719,-359.135084,0.00019178,2]
[373374805,1752976240728,-359.135084,0.00019178,2]
[373374808,1752976240738,-359.135084,0.00019178,2]
[373374810,1752976240748,-359.135084,0.00019178,2]
[373374812,1752976240759,-359.135084,0.00019178,2]
[373374813,1752976240768,-359.135084,0.00019178,2]
[373374815,1752976240777,-359.135084,0.00019178,2]
[373374817,1752976240786,-359.135084,0.00019178,2]
[373374819,1752976240795,-359.135084,0.00019178,2]
[373374821,1752976240804,-359.135084,0.00019178,2]
[373374823,1752976240814,-359.135084,0.00019178,2]
[373374824,1752976240823,-359.135084,0.00019178,2]
[373374825,1752976240831,-359.135084,0.00019178,2]
[373374826,1752976240840,-359.135084,0.00019178,2]
[373374827,1752976240849,-359.135084,0.00019178,2]
[373374828,1752976240858,-359.135084,0.00019178,2]
[373374829,1752976240867,-158.615586,0.00019178,2]
[373374830,1752976240876,-158.615586,0.00019178,2]
[373374831,1752976240885,-158.615586,0.00019178,2]
[373374832,1752976240896,-158.615586,0.00019178,2]
[373374833,1752976240905,-158.615586,0.00019178,2]
[373374835,1752976240915,-158.615586,0.00019178,2]
[373374837,1752976240925,-158.615586,0.00019178,2]
[373374839,1752976240934,-158.615586,0.00019178,2]
[373374841,1752976240943,-158.615586,0.00019178,2]
[373374843,1752976240952,-158.615586,0.00019178,2]
[373374845,1752976240962,-465.97773326,0.00019178,2]
[373374847,1752976240971,-472.46171459,0.00019178,2]
[373374849,1752976240981,-151.0,0.00019178,2]
[373374851,1752976240990,-221.771371,0.00019178,2]
[373374853,1752976241001,-480.0,0.00019178,2]
[373374855,1752976241011,-152.010109,0.00019178,2]
[373374857,1752976241019,-468.62166326,0.00019178,2]
[373374859,1752976241029,-480.0,0.00019178,2]
[373374861,1752976241039,-500.0,0.00019178,2]
[373374863,1752976241049,-500.0,0.00019178,2]
[373374865,1752976241058,-150.0,0.00019178,2]
[373374867,1752976241067,-150.0,0.00019178,2]
[373374869,1752976241076,-150.0,0.00019178,2]
[373374871,1752976241086,-500.0,0.00019178,2]
[373374873,1752976241095,-150.0,0.00019178,2]
[373374875,1752976241104,-151.0,0.00019178,2]
[373374877,1752976241113,-153.305073,0.00019178,2]
[373374879,1752976241122,-250.65961067,0.00019178,2]
[373374881,1752976241132,-480.0,0.00019178,2]
[373374883,1752976241141,-480.0,0.00019178,2]
[373374885,1752976241151,-480.0,0.00019178,2]
[373374886,1752976241159,-163.872053,0.00019178,2]
[373374888,1752976241169,-163.872053,0.00019178,2]
[373374890,1752976241178,-163.872053,0.00019178,2]
[373374892,1752976241188,-163.872053,0.00019178,2]
[373374894,1752976241197,-163.872053,0.00019178,2]
[373374896,1752976241207,-163.872053,0.00019178,2]
[373374898,1752976241217,-163.872053,0.00019178,2]
[373374900,1752976241226,-163.872053,0.00019178,2]
[373374902,1752976241235,-163.872053,0.00019178,2]
[373374904,1752976241244,-163.872053,0.00019178,2]
[373374906,1752976241253,-163.872053,0.00019178,2]
[373374908,1752976241263,-163.872053,0.00019178,2]
[373374910,1752976241271,-151.0,0.00019178,2]
[373374912,1752976241281,-480.0,0.00019178,2]
[373374914,1752976241290,-151.376179,0.00019178,2]
[373374916,1752976241299,-227.91489466,0.00019178,2]
[373374918,1752976241308,-151.0,0.00019178,2]
[373374920,1752976241317,-151.0,0.00019178,2]
[373374922,1752976241327,-151.0,0.00019178,2]
[373374924,1752976241336,-151.0,0.00019178,2]
[373374926,1752976241346,-151.0,0.00019178,2]
[373374928,1752976241355,-151.0,0.00019178,2]
[373374930,1752976241364,-151.0,0.00019178,2]
[373374932,1752976241373,-151.0,0.00019178,2]
[373374934,1752976241383,-480.0,0.00019178,2]
[373374936,1752976241391,-480.0,0.00019178,2]
[373374938,1752976241400,-480.0,0.00019178,2]
[373374940,1752976241410,-151.0,0.00019178,2]
[373374942,1752976241419,-151.0,0.00019178,2]
[373374944,1752976241428,-151.0,0.00019178,2]
[373374946,1752976241437,-480.0,0.00019178,2]
[373374948,1752976241447,-152.764194,0.00019178,2]
[373374950,1752976241457,-480.0,0.00019178,2]
[373374952,1752976241466,-480.0,0.00019178,2]
[373374954,1752976241475,-151.0,0.00019178,2]
[373374956,1752976241484,-151.0,0.00019178,2]
[373374958,1752976241493,-151.0,0.00019178,2]
[373374960,1752976241503,-151.747619,0.00019178,2]
[373374962,1752976241512,-480.0,0.00019178,2]
[373374964,1752976241520,-463.07557739,0.00019178,2]
[373374966,1752976241530,-159.4169392,0.00019178,2]
[373374968,1752976241539,-480.0,0.00019178,2]
[373374970,1752976241548,-151.263948,0.00019178,2]
[373374972,1752976241557,-369.13600389,0.00019178,2]
[373374974,1752976241567,-151.0,0.00019178,2]
[373374976,1752976241576,-151.0,0.00019178,2]
[373374978,1752976241586,-279.59695315,0.00019178,2]
[373374980,1752976241597,-238.797273,0.00019178,2]
[373374982,1752976241606,-480.0,0.00019178,2]
[373374984,1752976241615,-480.0,0.00019178,2]
[373374986,1752976241624,-480.0,0.00019178,2]
[373374988,1752976241633,-480.0,0.00019178,2]
[373374990,1752976241642,-151.0,0.00019178,2]
[373374992,1752976241651,-151.0,0.00019178,2]
[373374994,1752976241660,-151.0,0.00019178,2]
[373374995,1752976241670,-151.0,0.00019178,2]
[373374997,1752976241679,-480.0,0.00019178,2]
[373374999,1752976241688,-151.0,0.00019178,2]
[373375001,1752976241697,-151.0,0.00019178,2]
[373375003,1752976241707,-151.0,0.00019178,2]
[373375005,1752976241715,-151.0,0.00019178,2]
[373375007,1752976241725,-151.0,0.00019178,2]
[373375009,1752976241734,-168.3383,0.00019178,2]
[373375011,1752976241743,-480.0,0.00019178,2]
[373375013,1752976241752,-480.0,0.00019178,2]
[373375015,1752976241762,-480.0,0.00019178,2]
[373375017,1752976241771,-480.0,0.00019178,2]
[373375019,1752976241781,-151.0,0.00019178,2]
[373375021,1752976241790,-316.28468816,0.00019178,2]
[373375023,1752976241799,-151.0,0.00019178,2]
[373375025,1752976241810,-151.0,0.00019178,2]
[373375027,1752976241818,-151.0,0.00019178,2]